bitfinex-derivatives/quotes_BTCF0:USTF0_20210105
["timestamp","ask_amount","ask_price","bid_price","bid_amount"]
[1609848315099,0.13632608,31930.0,31928.0,0.13632608]
[1609848315299,0.13632608,31930.0,31927.0,0.13828]
[1609848315900,0.13632608,31930.0,31917.0,0.14791]
[1609848316100,0.13632608,31930.0,31912.0,3.9349]
[1609848317100,0.57428127,31931.0,31918.0,0.13632608]
[1609848318201,0.57428127,31931.0,31921.0,4.0609]
[1609848319002,0.57414205,31928.0,31921.0,4.0609]
[1609848319202,0.57414205,31928.0,31926.0,0.13632608]
[1609848319402,0.57412044,31934.0,31926.0,0.13632608]
[1609848320102,0.68890626,31935.0,31926.0,0.13632608]
[1609848320103,0.57410615,31935.0,31926.0,0.13632608]
[1609848321205,0.57410615,31935.0,31934.0,0.13632608]
[1609848321604,0.55880615,31935.0,31934.0,0.13632608]
[1609848321806,0.55010615,31935.0,31934.0,0.13632608]
[1609848322005,0.47910615,31935.0,31934.0,0.13632608]
[1609848322407,0.13632608,31944.0,31935.0,5.2296]
[1609848323213,0.13632608,31944.0,31943.0,0.13632608]
[1609848323406,0.13632608,31944.0,31943.0,0.24005608]
[1609848324607,0.13632608,31944.0,31943.0,0.10373]
[1609848325207,0.13632608,31944.0,31943.0,0.24005608]
[1609848327208,0.13632608,31944.0,31943.0,0.10373]
[1609848327809,0.13632608,31944.0,31935.0,5.2296]
[1609848329213,0.68784372,31948.0,31941.0,0.13632608]
[1609848329412,0.68784372,31948.0,31935.0,5.2296]
[1609848329614,0.68784372,31948.0,31931.0,0.1123]
[1609848329814,0.68784372,31948.0,31926.0,3.6788]
[1609848330715,0.84065802,31950.0,31926.0,3.6788]
[1609848330716,0.68783639,31947.0,31926.0,3.6788]
[1609848331216,0.68785087,31948.0,31938.0,0.13632608]
[1609848331418,0.68785087,31948.0,31926.0,3.6788]
[1609848331816,0.68774129,31947.0,31926.0,3.6788]
[1609848332217,0.68776145,31942.0,31926.0,3.6788]
[1609848333217,0.13632608,31927.0,31926.0,3.6788]
[1609848334718,0.13632608,31927.0,31924.0,0.09222]
[1609848335118,0.13632608,31927.0,31922.0,0.13632608]
[1609848336321,0.13632608,31927.0,31914.0,4.6112]
[1609848337319,0.68793917,31935.0,31926.0,0.13632608]
[1609848337520,1.11707209,31938.0,31926.0,0.13632608]
[1609848337521,0.68791998,31936.0,31926.0,0.13632608]
[1609848337924,0.68791998,31936.0,31921.0,0.14758]
[1609848339323,0.13632608,31922.0,31921.0,0.14758]
[1609848342627,0.13632608,31922.0,31921.0,0.88918]
[1609848351339,0.13632608,31922.0,31921.0,0.14758]
[1609848351541,0.13632608,31922.0,31914.0,0.23604608]
[1609848351740,0.13632608,31922.0,31917.0,3.9743]
[1609848353242,0.13632608,31918.0,31917.0,3.9743]
[1609848353442,0.13632608,31918.0,31914.0,0.09972]
[1609848353642,0.13632608,31918.0,31909.0,4.9808]
[1609848355246,0.13632608,31918.0,31917.0,0.13632608]
[1609848357446,0.13632608,31918.0,31916.0,0.14159]
[1609848360449,0.13632608,31918.0,31915.0,0.13632608]
[1609848360852,0.13632608,31918.0,31917.0,5.2516]
[1609848361049,0.13632608,31918.0,31917.0,5.37314]
[1609848363554,0.13632608,31918.0,31917.0,0.12154]
[1609848365053,0.13632608,31918.0,31917.0,0.09384]
[1609848366155,0.13632608,31918.0,31909.0,4.4866]
[1609848367255,0.13632608,31910.0,31900.0,0.13632608]
[1609848368759,0.13632608,31910.0,31898.0,4.8588]
[1609848368958,0.13632608,31910.0,31884.0,1.95582537]
[1609848369158,0.13632608,31910.0,31879.0,4.1564]
[1609848369357,0.57273266,31911.0,31890.0,0.13632608]
[1609848369757,0.57273266,31911.0,31890.0,0.23577608]
[1609848370457,0.57273266,31911.0,31890.0,0.09945]
[1609848370858,0.78134103,31912.0,31890.0,0.09945]
[1609848370859,0.66693646,31912.0,31890.0,0.09945]
[1609848371261,0.13632608,31891.0,31890.0,0.09945]
[1609848373060,0.13632608,31891.0,31879.0,4.29272608]
[1609848373262,0.13632608,31880.0,31879.0,0.13632608]
[1609848373663,0.13632608,31880.0,31865.0,1.95805912]
[1609848374363,0.13632608,31880.0,31859.0,5.1601]
[1609848374364,0.13632608,31880.0,31863.0,1.9597644]
[1609848374864,0.13632608,31880.0,31859.0,5.1601]
[1609848375367,0.0938,31889.0,31863.0,0.13632608]
[1609848375567,0.12906,31880.0,31863.0,0.13632608]
[1609848375768,0.12906,31880.0,31861.0,0.09882]
[1609848377479,0.12906,31880.0,31863.0,0.13632608]
[1609848378673,0.12906,31880.0,31869.0,4.0379]
[1609848378871,0.0927,31882.0,31869.0,4.13636]
[1609848379273,0.2808,31888.0,31879.0,0.13632608]
[1609848379472,0.2808,31888.0,31879.0,0.26815608]
[1609848379672,0.2808,31888.0,31882.0,3.8919]
[1609848381377,0.13632608,31883.0,31882.0,3.8919]
[1609848389389,0.2882,31903.0,31882.0,4.02822608]
[1609848389588,0.2882,31903.0,31882.0,0.13632608]
[1609848389788,0.2882,31903.0,31890.0,4.0743]
[1609848389988,0.2882,31903.0,31890.0,4.17105]
[1609848390189,0.5661026,31912.0,31890.0,4.17105]
[1609848391389,0.5661026,31912.0,31911.0,0.13632608]
[1609848391692,0.5661026,31912.0,31911.0,4.43767608]
[1609848392091,0.13632608,31914.0,31911.0,4.43767608]
[1609848392890,0.56589768,31915.0,31911.0,4.43767608]
[1609848393490,0.13632608,31925.0,31911.0,4.43767608]
[1609848393890,0.13632608,31925.0,31911.0,4.30135]
[1609848395491,0.13632608,31913.0,31912.0,0.13632608]
[1609848395691,0.13632608,31913.0,31911.0,4.30135]
[1609848396294,0.13632608,31913.0,31911.0,0.13295]
[1609848396896,0.13632608,31913.0,31902.0,5.2489]
[1609848397494,0.13632608,31903.0,31902.0,5.2489]
[1609848397695,0.13632608,31903.0,31896.0,0.13632608]
[1609848398095,0.13632608,31903.0,31890.0,0.09675]
[1609848398295,0.13632608,31903.0,31886.0,3.6144]
[1609848399298,0.13632608,31903.0,31879.0,0.13183]
[1609848399500,0.10661,31911.0,31882.0,0.13632608]
[1609848399698,0.39271,31911.0,31879.0,0.13183]
[1609848399899,0.39271,31911.0,31872.0,4.1132]
[1609848401303,0.39271,31911.0,31863.0,1.93360066]
[1609848401501,0.39271,31911.0,31888.0,0.13632608]
[1609848401701,0.39271,31911.0,31890.0,4.9064]
[1609848403503,0.13632608,31891.0,31890.0,4.9064]
[1609848403905,0.13632608,31891.0,31888.0,0.27507608]
[1609848404507,0.39271,31911.0,31889.0,0.7274]
[1609848404709,0.39271,31911.0,31888.0,0.27507608]
[1609848405107,0.39271,31911.0,31891.0,4.1138]
[1609848405407,0.39271,31911.0,31898.0,0.13632608]
[1609848405608,0.39271,31911.0,31898.0,0.27466608]
[1609848405809,0.39271,31911.0,31898.0,0.13834]
[1609848406608,0.39271,31911.0,31898.0,0.70994]
[1609848407209,0.10661,31911.0,31898.0,0.70994]
[1609848407411,0.56847827,31917.0,31907.0,0.13632608]
[1609848407610,0.56847827,31917.0,31907.0,0.24212608]
[1609848407815,0.56847827,31917.0,31907.0,3.80022608]
[1609848408212,0.5682956,31918.0,31907.0,3.80022608]
[1609848409312,0.2838,31924.0,31907.0,3.80022608]
[1609848409511,0.13632608,31908.0,31907.0,0.24212608]
[1609848410713,0.13632608,31908.0,31907.0,0.1058]
[1609848412814,0.13632608,31908.0,31900.0,4.7836]
[1609848413120,0.13632608,31908.0,31898.0,0.13834]
[1609848413515,0.13632608,31899.0,31890.0,0.13632608]
[1609848415618,0.12083,31914.0,31890.0,0.13632608]
[1609848417524,0.13632608,31891.0,31890.0,0.13632608]
[1609848420427,0.13632608,31891.0,31890.0,0.23112608]
[1609848420626,0.13632608,31891.0,31890.0,0.13632608]
[1609848420828,0.13632608,31891.0,31888.0,0.13875]
[1609848421027,0.13632608,31891.0,31887.0,3.6918]
[1609848422931,0.13632608,31891.0,31868.0,1.93536923]
[1609848423129,0.13632608,31891.0,31868.0,5.88476923]
[1609848423330,0.13632608,31891.0,31868.0,3.9494]
[1609848423530,0.0941,31900.0,31876.0,0.13632608]
[1609848423730,0.0941,31900.0,31876.0,0.22783608]
[1609848424933,0.57085985,31898.0,31876.0,0.22783608]
[1609848425132,0.0943,31897.0,31876.0,0.22783608]
[1609848425332,0.0943,31897.0,31876.0,0.09151]
[1609848425834,0.13632608,31877.0,31876.0,0.09151]
[1609848427436,0.13632608,31877.0,31876.0,0.67631]
[1609848427836,0.68715985,31898.0,31876.0,0.81263608]
[1609848428037,0.68715985,31898.0,31876.0,0.22783608]
[1609848428638,0.57085985,31898.0,31876.0,0.22783608]
[1609848429038,0.57085985,31898.0,31885.0,3.8129]
[1609848429238,0.57085985,31898.0,31885.0,3.9484]
[1609848429839,0.57085985,31898.0,31897.0,0.13632608]
[1609848430039,0.57105856,31906.0,31897.0,0.26368608]
[1609848430239,0.57105856,31906.0,31899.0,0.68]
[1609848430439,0.57105856,31906.0,31897.0,0.26368608]
[1609848430639,0.57105519,31916.0,31897.0,0.26368608]
[1609848431239,0.57105519,31916.0,31897.0,0.76918608]
[1609848431640,0.5710662,31915.0,31897.0,0.26368608]
[1609848431839,0.5710662,31915.0,31905.0,0.13632608]
[1609848432340,0.5710662,31915.0,31905.0,0.23978608]
[1609848432940,0.5710662,31915.0,31905.0,0.10346]
[1609848433645,0.87018559,31918.0,31905.0,0.10346]
[1609848433842,0.13632608,31906.0,31905.0,0.10346]
[1609848434044,0.13632608,31906.0,31897.0,0.12736]
[1609848435144,0.13632608,31906.0,31887.0,4.023]
[1609848435947,0.13632608,31888.0,31887.0,4.023]
[1609848436448,0.13632608,31888.0,31886.0,0.13632608]
[1609848436647,0.13632608,31888.0,31876.0,2.03025375]
[1609848436847,0.13632608,31888.0,31876.0,0.09151]
[1609848437146,0.13632608,31888.0,31872.0,1.9411688]
[1609848437947,4.4423,31899.0,31884.0,0.13632608]
[1609848438149,4.4423,31899.0,31884.0,0.14279]
[1609848439649,4.4423,31899.0,31870.0,0.12085]
[1609848439851,0.13632608,31871.0,31870.0,0.12085]
[1609848441552,0.57216305,31893.0,31870.0,0.12085]
[1609848441949,0.572335,31889.0,31880.0,0.13632608]
[1609848442150,0.572335,31889.0,31880.0,0.23467608]
[1609848443352,0.57203103,31903.0,31880.0,0.23467608]
[1609848443952,0.57203103,31903.0,31887.0,0.13632608]
[1609848444151,0.57203103,31903.0,31887.0,0.23789608]
[1609848444551,0.57199495,31906.0,31887.0,0.23789608]
[1609848445353,0.57199674,31907.0,31887.0,0.23789608]
[1609848445751,0.57199674,31907.0,31887.0,0.10157]
[1609848445952,0.13632608,31888.0,31887.0,0.10157]
[1609848446353,0.13632608,31888.0,31887.0,0.08657]
[1609848449157,0.13632608,31888.0,31880.0,0.09835]
[1609848449355,0.13632608,31888.0,31871.0,4.2579]
[1609848449957,0.13632608,31873.0,31871.0,4.2579]
[1609848451460,0.57220444,31897.0,31871.0,4.2579]
[1609848451663,0.57209916,31898.0,31871.0,4.2579]
[1609848451861,0.57209916,31898.0,31880.0,0.13632608]
[1609848452071,0.57209916,31898.0,31880.0,0.26973608]
[1609848452262,0.0949,31897.0,31880.0,0.26973608]
[1609848453063,0.0949,31897.0,31880.0,0.13341]
[1609848453863,0.13632608,31881.0,31880.0,0.13341]
[1609848456168,0.13632608,31881.0,31870.0,0.12085]
[1609848456368,0.13632608,31881.0,31864.0,0.13632608]
[1609848457671,0.13632608,31881.0,31850.0,1.93420448]
[1609848457871,4.5196,31881.0,31859.0,0.13632608]
[1609848458271,4.5196,31881.0,31859.0,0.24127608]
[1609848458471,4.5196,31881.0,31859.0,0.10495]
[1609848459873,0.13632608,31860.0,31859.0,0.10495]
[1609848463278,0.13632608,31860.0,31857.0,0.13632608]
[1609848463477,0.13632608,31860.0,31847.0,0.01071221]
[1609848463878,4.9908,31871.0,31854.0,0.13632608]
[1609848464078,0.57176863,31882.0,31854.0,0.13632608]
[1609848464278,0.57176863,31882.0,31854.0,0.25873608]
[1609848464480,0.13478,31884.0,31854.0,0.25873608]
[1609848464981,4.2549,31876.0,31854.0,0.25873608]
[1609848465879,0.13632608,31855.0,31854.0,0.25873608]
[1609848466079,0.13632608,31855.0,31854.0,0.12241]
[1609848468682,4.2549,31876.0,31854.0,0.12241]
[1609848468882,0.10605,31877.0,31854.0,0.12241]
[1609848469282,0.10605,31877.0,31854.0,0.10224]
[1609848469984,0.10605,31877.0,31864.0,0.13632608]
[1609848470185,0.10605,31877.0,31864.0,0.27195608]
[1609848470387,0.13478,31884.0,31864.0,0.27195608]
[1609848470585,0.2934,31885.0,31864.0,0.27195608]
[1609848471986,0.13632608,31865.0,31864.0,0.27195608]
[1609848472789,0.09857,31884.0,31864.0,0.27195608]
[1609848473589,0.09857,31884.0,31864.0,0.13563]
[1609848474089,0.13632608,31865.0,31864.0,0.13563]
[1609848475191,0.13632608,31865.0,31862.0,0.13632608]
[1609848475593,0.13632608,31865.0,31856.0,0.0935]
[1609848475991,0.12897,31877.0,31861.0,0.13632608]
[1609848476192,0.12897,31877.0,31862.0,0.0953]
[1609848476393,0.12897,31877.0,31861.0,0.13632608]
[1609848478095,0.13632608,31862.0,31861.0,0.13632608]
[1609848479297,0.13632608,31862.0,31854.0,0.10224]
[1609848479497,0.13632608,31862.0,31850.0,4.7141]
[1609848480097,0.12978,31870.0,31854.0,0.13632608]
[1609848481500,0.12978,31870.0,31851.0,0.11222]
[1609848482100,0.13632608,31852.0,31851.0,0.11222]
[1609848485305,0.13632608,31852.0,31849.0,0.13632608]
[1609848486709,0.13632608,31852.0,31836.0,4.1289]
[1609848486909,0.13632608,31852.0,31834.0,1.94838441]
[1609848487914,0.13632608,31852.0,31833.0,1.94542746]
[1609848488114,0.13632608,31848.0,31837.0,0.13632608]
[1609848493735,0.13632608,31848.0,31827.0,1.94797747]
[1609848494332,0.13632608,31848.0,31847.0,1.221e-05]
[1609848494532,0.23433608,31848.0,31847.0,1.221e-05]
[1609848495336,0.23433608,31848.0,31819.0,2.30541117]
[1609848495337,0.23433608,31848.0,31817.0,0.52930098]
[1609848496136,0.09801,31848.0,31823.0,0.13632608]
[1609848496335,0.09801,31848.0,31823.0,0.23350608]
[1609848496735,0.09801,31848.0,31830.0,3.8918]
[1609848497135,0.09801,31848.0,31830.0,4.034]
[1609848498136,0.09801,31848.0,31831.0,0.23172608]
[1609848498337,0.09801,31848.0,31831.0,0.13632608]
[1609848499437,0.2908,31855.0,31831.0,0.23112608]
[1609848500037,0.2908,31855.0,31831.0,0.0948]
[1609848501240,0.2908,31855.0,31830.0,0.1422]
[1609848502040,0.2908,31855.0,31831.0,0.13632608]
[1609848502842,0.0952,31854.0,31831.0,0.13632608]
[1609848503041,0.2908,31855.0,31831.0,0.13632608]
[1609848503243,0.29479969,31855.0,31831.0,0.13632608]
[1609848504041,0.13632608,31832.0,31831.0,0.13632608]
[1609848505245,0.13632608,31832.0,31830.0,0.20676]
[1609848505846,0.13632608,31832.0,31830.0,0.11156]
[1609848507350,0.13632608,31832.0,31826.0,0.13632608]
[1609848508050,0.13632608,31832.0,31831.0,0.13632608]
[1609848508452,0.13632608,31832.0,31831.0,0.24700608]
[1609848511058,0.01522608,31832.0,31831.0,0.34250608]
[1609848511262,0.00652608,31832.0,31831.0,0.34250608]
[1609848511860,0.14825,31847.0,31831.0,0.24700608]
[1609848512061,0.14825,31847.0,31840.0,0.13632608]
[1609848512260,4.5968,31854.0,31840.0,0.13632608]
[1609848513562,0.2908,31855.0,31840.0,0.13632608]
[1609848513761,0.1027,31856.0,31842.0,4.1533]
[1609848513962,0.57123752,31859.0,31842.0,4.1533]
[1609848514162,0.35177057,31859.0,31857.0,0.13632608]
[1609848514363,0.06357057,31859.0,31857.0,0.13632608]
[1609848514564,0.83772619,31863.0,31857.0,0.13632608]
[1609848514763,0.68519346,31864.0,31858.0,5.2304]
[1609848515364,0.54819346,31864.0,31858.0,5.2304]
[1609848515864,0.54819346,31864.0,31857.0,0.13632608]
[1609848516063,0.13632608,31858.0,31857.0,0.13632608]
[1609848516263,0.82272608,31858.0,31857.0,0.13632608]
[1609848517869,0.82272608,31858.0,31842.0,0.0935]
[1609848518067,0.6864,31858.0,31852.0,0.13632608]
[1609848518267,0.6864,31858.0,31842.0,0.0935]
[1609848518967,0.6864,31858.0,31846.0,0.0931]
[1609848520068,0.6864,31858.0,31857.0,0.13632608]
[1609848521471,0.10952,31869.0,31857.0,0.13632608]
[1609848521869,0.10952,31869.0,31851.0,3.7831]
[1609848522072,0.10952,31869.0,31856.0,0.13632608]
[1609848522771,0.8879,31878.0,31856.0,0.13632608]
[1609848524076,0.8879,31878.0,31862.0,0.13632608]
[1609848524476,0.8879,31878.0,31853.0,0.0938]
[1609848524678,0.2877,31878.0,31853.0,0.0938]
[1609848525276,4.2963,31870.0,31851.0,0.1053]
[1609848525477,4.2963,31870.0,31842.0,0.0935]
[1609848526080,4.2963,31870.0,31848.0,0.13632608]
[1609848526277,4.2963,31870.0,31848.0,0.24123608]
[1609848528080,0.13632608,31849.0,31848.0,0.24123608]
[1609848529380,0.13632608,31849.0,31848.0,0.10491]
[1609848529582,0.68812608,31849.0,31838.0,0.14074]
[1609848529780,0.13632608,31849.0,31832.0,1.97297696]
[1609848529982,5.093,31846.0,31832.0,1.97297696]
[1609848530180,0.13632608,31833.0,31832.0,2.10930304]
[1609848531983,0.13632608,31833.0,31832.0,0.13632608]
[1609848535086,3.89722608,31833.0,31832.0,0.13632608]
[1609848539289,3.89722608,31833.0,31831.0,0.11068]
[1609848539689,3.89722608,31833.0,31822.0,1.99294245]
[1609848540190,3.7609,31833.0,31824.0,0.13632608]
[1609848540388,3.7609,31833.0,31824.0,0.25821608]
[1609848542192,0.13632608,31825.0,31824.0,0.25821608]
[1609848542590,0.68272608,31825.0,31824.0,0.25821608]
[1609848543291,0.68272608,31825.0,31824.0,0.12189]
[1609848544092,0.68272608,31825.0,31819.0,2.00098985]
[1609848544292,0.13632608,31820.0,31819.0,2.00098985]
[1609848544492,0.64282608,31820.0,31819.0,2.00098985]
[1609848545495,0.64282608,31820.0,31812.0,2.50065856]
[1609848545496,0.64282608,31820.0,31815.0,2.00384042]
[1609848545993,0.13632608,31820.0,31815.0,2.00384042]
[1609848546394,0.13632608,31816.0,31815.0,2.00384042]
[1609848546594,0.13632608,31816.0,31812.0,2.14156028]
[1609848547094,0.13632608,31816.0,31815.0,0.0941]
[1609848547295,0.13632608,31816.0,31815.0,0.11771]
[1609848548497,4.051,31826.0,31815.0,0.11771]
[1609848549096,0.2868,31832.0,31815.0,0.11771]
[1609848549497,4.9157,31816.0,31815.0,0.11771]
[1609848550298,5.05202608,31816.0,31812.0,2.0052342]
[1609848551301,5.05202608,31816.0,31806.0,2.00526354]
[1609848552102,5.05202608,31816.0,31797.0,2.00676239]
[1609848552302,0.13632608,31802.0,31800.0,0.13632608]
[1609848554102,0.13632608,31802.0,31797.0,2.00676239]
[1609848554303,0.13632608,31798.0,31797.0,2.00676239]
[1609848554705,4.88432608,31798.0,31797.0,2.00676239]
[1609848555708,4.88432608,31798.0,31794.0,2.01993912]
[1609848556506,0.13632608,31798.0,31794.0,2.01993912]
[1609848556708,0.13632608,31798.0,31794.0,0.01071221]
[1609848556907,3.7246,31795.0,31794.0,0.01071221]
[1609848557306,0.13632608,31798.0,31787.0,1.05567481]
[1609848557507,3.7532,31788.0,31787.0,1.05567481]
[1609848558310,3.88952608,31788.0,31787.0,1.05567481]
[1609848560311,0.13632608,31788.0,31787.0,1.05567481]
[1609848560513,0.13632608,31788.0,31787.0,1.04827481]
[1609848561113,0.13632608,31788.0,31778.0,2.18390334]
[1609848562114,0.2816,31802.0,31778.0,2.18390334]
[1609848562315,0.13632608,31791.0,31784.0,0.13632608]
[1609848562916,0.2816,31802.0,31784.0,0.13632608]
[1609848563317,0.56856719,31820.0,31784.0,0.13632608]
[1609848563519,4.4976,31821.0,31784.0,0.13632608]
[1609848563718,0.2746,31820.0,31784.0,0.13632608]
[1609848564119,0.0934,31819.0,31784.0,0.13632608]
[1609848564319,0.40297,31820.0,31808.0,0.13632608]
[1609848565120,0.40297,31820.0,31803.0,0.11373]
[1609848565521,4.0251,31810.0,31803.0,0.11373]
[1609848565722,4.0251,31810.0,31782.0,3.7425]
[1609848566423,4.0251,31810.0,31788.0,0.13632608]
[1609848568226,0.095,31811.0,31788.0,0.13632608]
[1609848568427,0.13632608,31789.0,31788.0,0.13632608]
[1609848573431,0.13632608,31789.0,31778.0,0.11194]
[1609848573830,0.13632608,31789.0,31762.0,0.2869]
[1609848574431,0.13632608,31779.0,31778.0,0.13632608]
[1609848577435,0.13632608,31779.0,31762.0,0.2869]
[1609848578436,0.13632608,31779.0,31776.0,0.13632608]
[1609848580437,0.13632608,31779.0,31772.0,0.1159]
[1609848582440,0.13632608,31773.0,31772.0,0.1159]
[1609848583641,0.13632608,31773.0,31771.0,0.13632608]
[1609848584442,0.13632608,31773.0,31767.0,0.13632608]
[1609848584641,0.13632608,31773.0,31755.0,4.0651]
[1609848586446,3.5939,31783.0,31768.0,0.13632608]
[1609848586647,3.5939,31783.0,31768.0,0.26396608]
[1609848588448,0.13632608,31769.0,31768.0,0.26396608]
[1609848590051,3.5939,31783.0,31768.0,0.26396608]
[1609848590252,0.2799,31794.0,31768.0,0.26396608]
[1609848590452,0.2799,31794.0,31774.0,0.13632608]
[1609848590853,0.2799,31794.0,31768.0,0.12764]
[1609848591253,0.2799,31794.0,31769.0,0.2928]
[1609848592456,0.13632608,31770.0,31769.0,0.42912608]
[1609848594159,0.13632608,31770.0,31769.0,0.2928]
[1609848594360,3.99572608,31770.0,31768.0,0.12764]
[1609848594559,3.99572608,31770.0,31746.0,5.2521]
[1609848594560,0.13632608,31770.0,31745.0,1.98874966]
[1609848594761,4.0251,31769.0,31745.0,1.98874966]
[1609848594962,0.26413608,31770.0,31745.0,1.98874966]
[1609848595160,5.0959,31753.0,31745.0,2.11579966]
[1609848595559,5.0959,31753.0,31745.0,2.11179966]
[1609848595761,0.09498,31759.0,31745.0,0.12705]
[1609848595961,0.09498,31759.0,31736.0,0.10406]
[1609848596362,0.2783,31758.0,31736.0,0.10406]
[1609848596563,0.13632608,31737.0,31736.0,0.10406]
[1609848596962,0.13632608,31737.0,31726.0,0.13632608]
[1609848597367,4.66452608,31737.0,31726.0,0.13632608]
[1609848598565,0.13632608,31727.0,31726.0,0.13632608]
[1609848598765,4.53872608,31727.0,31726.0,0.13632608]
[1609848600270,4.53872608,31727.0,31700.0,3.8194]
[1609848600467,0.13632608,31722.0,31720.0,0.13632608]
[1609848601171,0.13632608,31722.0,31702.0,2.20556665]
[1609848601368,0.5858,31721.0,31702.0,2.20556665]
[1609848601568,0.13632608,31722.0,31702.0,2.20556665]
[1609848601769,5.2552,31718.0,31702.0,2.20556665]
[1609848602468,5.2552,31718.0,31711.0,0.13632608]
[1609848602671,0.14577,31720.0,31702.0,2.20556665]
[1609848603071,0.14577,31720.0,31702.0,2.30042665]
[1609848604472,0.13632608,31703.0,31702.0,2.30042665]
[1609848604873,4.20062608,31703.0,31702.0,2.20556665]
[1609848605072,4.20062608,31703.0,31702.0,2.19556665]
[1609848605275,4.30938608,31703.0,31702.0,2.07826665]
[1609848605473,4.30938608,31703.0,31699.0,2.38936388]
[1609848605672,4.30938608,31703.0,31694.0,2.39639552]
[1609848605871,0.24508608,31703.0,31694.0,2.39639552]
[1609848606274,0.24508608,31703.0,31693.0,0.2756]
[1609848606474,0.13632608,31694.0,31693.0,0.2756]
[1609848606873,0.25017608,31694.0,31693.0,0.1435]
[1609848607074,0.25017608,31694.0,31693.0,0.0989]
[1609848607273,0.25017608,31694.0,31666.0,2.05452489]
[1609848608475,0.13632608,31689.0,31685.0,0.13632608]
[1609848608877,0.2966,31702.0,31685.0,0.13632608]
[1609848609078,0.2966,31702.0,31685.0,0.25787608]
[1609848610279,0.57157515,31712.0,31685.0,0.25787608]
[1609848610482,0.57157515,31712.0,31711.0,0.13632608]
[1609848610881,0.13632608,31715.0,31707.0,0.14092]
[1609848611684,0.0953,31714.0,31707.0,0.14092]
[1609848611884,0.13632608,31715.0,31707.0,0.14092]
[1609848612683,0.13632608,31708.0,31691.0,0.13632608]
[1609848613284,0.13632608,31708.0,31692.0,0.0934]
[1609848613483,0.13632608,31708.0,31692.0,0.23477]
[1609848613684,0.13632608,31708.0,31692.0,0.14137]
[1609848614685,0.13632608,31693.0,31692.0,0.14137]
[1609848614886,0.13632608,31693.0,31692.0,0.11127]
[1609848615085,0.13632608,31693.0,31692.0,0.10417]
[1609848615694,0.13632608,31693.0,31685.0,0.12155]
[1609848615887,0.13632608,31693.0,31668.0,4.2191]
[1609848616087,0.0943,31692.0,31655.0,2.00646927]
[1609848616690,4.8249,31694.0,31687.0,0.13632608]
[1609848616889,4.8249,31694.0,31681.0,0.13072]
[1609848617591,0.0935,31693.0,31681.0,0.13072]
[1609848617790,4.8249,31694.0,31681.0,0.13072]
[1609848618592,0.13632608,31689.0,31688.0,0.13632608]
[1609848619794,0.13584,31698.0,31688.0,0.13632608]
[1609848619994,0.13584,31698.0,31688.0,0.23122608]
[1609848620193,0.13584,31698.0,31688.0,0.13632608]
[1609848620593,0.13584,31698.0,31697.0,0.13632608]
[1609848621194,4.3821,31716.0,31697.0,0.13632608]
[1609848622395,0.0934,31715.0,31698.0,0.0932]
[1609848622596,0.13632608,31705.0,31698.0,0.0932]
[1609848622796,0.13632608,31705.0,31697.0,0.23982608]
[1609848623996,0.0933,31704.0,31698.0,0.0937]
[1609848624598,0.0956,31709.0,31703.0,0.13632608]
[1609848624998,0.13632608,31719.0,31704.0,4.6167]
[1609848625198,0.13632608,31719.0,31704.0,4.73229]
[1609848625706,0.0945,31742.0,31704.0,4.73229]
[1609848626106,0.0945,31742.0,31705.0,0.0955]
[1609848626303,0.47283821,31746.0,31704.0,4.73229]
[1609848626499,4.2135,31749.0,31704.0,4.73229]
[1609848626704,0.2928,31755.0,31704.0,0.11559]
[1609848626899,0.2928,31755.0,31726.0,0.11561]
[1609848627104,0.39252,31755.0,31726.0,0.11561]
[1609848627701,0.0952,31754.0,31726.0,0.11561]
[1609848628303,0.0952,31754.0,31727.0,0.0933]
[1609848628801,0.0952,31754.0,31745.0,0.13632608]
[1609848629200,0.39252,31755.0,31738.0,0.1024]
[1609848629801,0.39252,31755.0,31726.0,0.11561]
[1609848630604,0.13632608,31728.0,31726.0,0.11561]
[1609848631404,0.13632608,31728.0,31726.0,0.21111]
[1609848631604,0.13632608,31728.0,31726.0,0.11561]
[1609848632003,0.13632608,31728.0,31722.0,0.13632608]
[1609848632404,0.13632608,31728.0,31706.0,4.019]
[1609848632604,0.13632608,31728.0,31704.0,0.11559]
[1609848632605,0.14794,31736.0,31723.0,0.13632608]
[1609848633004,0.11834,31747.0,31723.0,0.13632608]
[1609848633207,0.11834,31747.0,31731.0,4.3518]
[1609848633407,0.11834,31747.0,31731.0,4.46373]
[1609848634413,0.11834,31747.0,31731.0,0.11193]
[1609848634615,0.11834,31747.0,31732.0,0.13632608]
[1609848635809,0.48812,31755.0,31723.0,4.4379]
[1609848636610,0.48812,31755.0,31724.0,0.13632608]
[1609848637214,0.39252,31755.0,31724.0,0.13632608]
[1609848638717,0.39252,31755.0,31731.0,0.13632608]
[1609848638916,0.39252,31755.0,31723.0,4.4379]
[1609848640617,0.13632608,31724.0,31723.0,4.4379]
[1609848643221,0.13632608,31724.0,31720.0,0.10607]
[1609848643620,0.13632608,31724.0,31714.0,3.6546]
[1609848644725,0.12172,31737.0,31716.0,0.27372608]
[1609848646027,0.2716,31746.0,31716.0,0.27372608]
[1609848646631,0.13632608,31725.0,31722.0,0.13632608]
[1609848648429,0.13632608,31725.0,31716.0,0.1374]
[1609848648630,0.13632608,31725.0,31717.0,0.13632608]
[1609848649029,0.13632608,31725.0,31716.0,0.1374]
[1609848649733,0.13632608,31725.0,31714.0,3.6546]
[1609848650734,0.1461,31736.0,31716.0,0.13632608]
[1609848650935,0.0955,31735.0,31716.0,0.13632608]
[1609848651139,0.1461,31736.0,31716.0,0.25141608]
[1609848652032,0.01925746,31737.0,31717.0,0.0959]
[1609848652233,0.0948,31736.0,31717.0,0.0959]
[1609848652433,0.01925746,31737.0,31717.0,0.0959]
[1609848652633,0.59146063,31738.0,31724.0,0.13632608]
[1609848653534,0.0945,31737.0,31724.0,0.13632608]
[1609848653734,0.0945,31737.0,31725.0,0.0941]
[1609848654736,0.13632608,31726.0,31725.0,0.0941]
[1609848655735,0.13632608,31726.0,31724.0,0.13632608]
[1609848659738,0.01927253,31739.0,31724.0,0.13632608]
[1609848659941,0.70513221,31740.0,31724.0,0.13632608]
[1609848659942,0.13249,31740.0,31729.0,4.1626]
[1609848660139,0.59183815,31741.0,31729.0,4.1626]
[1609848660740,0.59183815,31741.0,31740.0,0.13632608]
[1609848661540,0.01927333,31747.0,31740.0,0.13632608]
[1609848662340,0.5919435,31749.0,31740.0,0.13632608]
[1609848662839,0.13632608,31741.0,31740.0,0.13632608]